bitfinex/quotes_ETHUSD_20240612
["timestamp","ask_amount","ask_price","bid_price","bid_amount"]
[1718201400630,8.32376,3619.8,3619.7,0.824]
[1718201401836,7.34,3619.8,3619.7,0.824]
[1718201402835,7.34,3620.4,3619.7,0.824]
[1718201403036,7.34,3620.4,3619.6,2.7627]
[1718201403037,7.34,3620.4,3620.1,0.824]
[1718201404545,7.202,3620.4,3620.1,0.824]
[1718201405338,7.202,3620.4,3620.0,2.2735]
[1718201405339,7.202,3620.4,3620.3,0.824]
[1718201405559,7.174,3620.4,3620.3,0.824]
[1718201405852,7.174,3620.9,3620.3,0.824]
[1718201406158,12.28,3621.3,3620.7,0.824]
[1718201406159,19.454,3621.3,3620.7,0.824]
[1718201406802,19.454,3621.3,3620.3,0.05523783]
[1718201409012,0.0552379,3621.2,3620.2,2.67946783]
[1718201409204,7.174,3621.3,3620.6,2.4347]
[1718201409406,7.174,3621.3,3620.7,3.00535]
[1718201409731,7.174,3621.3,3620.8,0.05523004]
[1718201409919,7.174,3621.3,3620.9,2.76174]
[1718201410324,7.174,3621.3,3620.9,2.73374]
[1718201411243,7.174,3621.8,3620.9,2.73374]
[1718201411448,3.0552379,3621.7,3620.9,2.73374]
[1718201412410,4.32052169,3621.7,3620.9,2.73374]
[1718201413749,4.32052169,3621.7,3620.6,5.19663]
[1718201413943,4.32052169,3621.7,3620.6,6.63007514]
[1718201415448,4.32052169,3621.7,3620.6,5.19663]
[1718201416819,4.32052169,3621.7,3620.6,2.76193]
[1718201417020,4.32052169,3621.7,3620.4,1.977]
[1718201417021,3.63195217,3621.6,3620.4,1.977]
[1718201417220,0.0552379,3621.5,3620.7,5.5231]
[1718201419158,2.2877379,3621.6,3620.7,5.5231]
[1718201420264,3.0,3621.7,3620.8,0.05523187]
[1718201420550,3.0,3621.7,3620.9,5.5235]
[1718201422154,5.3061,3621.7,3620.9,5.5235]
[1718201424314,1.658,3621.6,3620.9,5.5235]
[1718201424639,4.1341,3621.5,3620.9,5.5235]
[1718201424844,2.4761,3621.3,3620.9,5.5235]
[1718201425151,1.10436451,3621.2,3620.9,5.5235]
[1718201425357,2.4879,3621.1,3620.9,5.5235]
[1718201425658,5.4879,3621.1,3620.9,5.5235]
[1718201428525,1.43344514,3621.0,3620.9,5.5235]
[1718201428749,4.43344514,3621.0,3620.9,5.5235]
[1718201432675,3.0,3621.0,3620.9,5.5235]
[1718201433160,2.4879,3621.1,3620.9,5.5235]
[1718201433364,3.03669,3621.1,3620.9,5.5235]
[1718201433566,3.0,3621.0,3620.9,5.5235]
[1718201435153,0.54879,3621.1,3620.9,5.5235]
[1718201435460,4.0073,3621.5,3620.9,5.5235]
[1718201435461,3.824,3621.4,3620.9,5.5235]
[1718201435661,5.25744514,3621.4,3620.9,5.5235]
[1718201435870,4.43344514,3621.4,3620.9,5.5235]
[1718201437535,3.0,3621.4,3620.9,5.5235]
[1718201437735,8.832,3621.8,3620.9,5.5235]
[1718201437964,1.43344514,3621.7,3621.1,0.824]
[1718201438262,1.43344514,3621.7,3620.9,6.3475]
[1718201438463,0.824,3621.5,3621.2,5.523]
[1718201438831,1.43344514,3621.7,3621.2,5.523]
[1718201439031,2.25744514,3621.7,3621.2,5.523]
[1718201439233,0.84628451,3621.6,3621.2,5.523]
[1718201440766,0.824,3621.5,3621.2,5.523]
[1718201441929,2.25744514,3621.5,3621.2,5.523]
[1718201442134,5.25744514,3621.5,3621.2,5.523]
[1718201445161,3.1518,3621.3,3621.2,5.523]
[1718201445357,7.24315297,3621.3,3621.2,5.523]
[1718201446277,10.33459811,3621.3,3621.2,5.523]
[1718201447086,10.33459811,3621.3,3619.6,2.2738]
[1718201447087,1.658,3620.9,3619.6,2.2738]
[1718201447382,0.824,3620.0,3619.4,0.03]
[1718201447561,1.658,3620.7,3619.5,0.824]
[1718201447562,2.4633,3620.2,3619.5,0.824]
[1718201447970,5.4633,3620.2,3619.5,0.824]
[1718201448284,3.0,3620.2,3619.7,0.824]
[1718201448444,3.0,3620.2,3619.5,0.824]
[1718201448639,3.0,3620.2,3619.7,0.824]
[1718201449565,3.0,3620.2,3620.1,0.824]
[1718201452587,7.174,3620.3,3620.1,0.824]
[1718201452893,10.174,3620.6,3620.1,3.1823]
[1718201453047,10.174,3620.6,3620.5,0.824]
[1718201456592,10.174,3620.6,3619.8,2.4284]
[1718201456753,10.174,3620.6,3620.2,0.824]
[1718201458685,10.174,3620.6,3619.5,2.4277]
[1718201458862,10.174,3620.6,3620.2,0.824]
[1718201460275,10.174,3620.6,3620.1,0.824]
[1718201460780,10.174,3620.6,3620.3,0.824]
[1718201462182,10.174,3620.6,3619.6,0.05524943]
[1718201462183,10.174,3620.6,3620.5,0.824]
[1718201464357,7.174,3621.1,3620.6,2.3203]
[1718201464557,1.15149865,3621.3,3621.1,2.3203]
[1718201464763,1.15149865,3621.3,3621.2,1.13843]
[1718201466094,1.15149865,3621.3,3621.2,6.66143]
[1718201466263,1.15149865,3621.3,3621.2,8.91373]
[1718201466974,1.15149865,3621.3,3621.2,10.06573]
[1718201467294,8.90124797,3621.9,3621.2,10.06573]
[1718201467295,7.174,3621.9,3621.2,10.06573]
[1718201467495,7.174,3621.9,3621.3,1.282732]
[1718201468784,7.174,3621.9,3621.4,5.5227]
[1718201476175,3.0,3622.2,3621.4,5.4727]
[1718201476375,3.0,3622.1,3621.4,5.4727]
[1718201476777,3.0,3622.2,3621.4,5.4727]
[1718201489020,3.0,3622.2,3621.9,0.823]
[1718201489188,7.174,3622.3,3621.9,0.823]
[1718201489383,3.0,3622.2,3621.9,0.823]
[1718201489783,4.43344514,3622.2,3621.9,0.823]
[1718201489980,4.43344514,3622.2,3621.8,0.823]
[1718201490816,4.43344514,3622.2,3622.0,0.823]
[1718201492730,1.43344514,3622.2,3622.0,0.823]
[1718201492913,4.43344514,3622.2,3622.0,0.823]
[1718201494335,4.43344514,3622.2,3622.1,0.823]
[1718201495332,4.43344514,3622.2,3621.4,5.4727]
[1718201495534,4.43344514,3622.2,3621.9,0.823]
[1718201497539,4.43344514,3622.2,3621.4,5.4727]
[1718201497835,4.43344514,3622.2,3621.9,0.823]
[1718201504825,4.43344514,3622.2,3621.4,5.4727]
[1718201505373,4.43344514,3622.2,3621.7,0.823]
[1718201506334,4.43344514,3622.2,3621.6,0.823]
[1718201509229,4.43344514,3622.2,3621.8,0.823]
[1718201510025,4.43344514,3622.2,3621.4,5.4727]
[1718201510224,4.43344514,3622.2,3621.6,0.823]
[1718201511565,4.43344514,3622.2,3621.4,5.4727]
[1718201511778,4.43344514,3622.2,3621.7,0.823]
[1718201512628,3.09144514,3622.1,3621.4,5.4727]
[1718201512961,3.0,3622.0,3621.4,5.4727]
[1718201513275,4.43344514,3622.0,3621.4,5.4727]
[1718201513440,4.0526,3621.9,3621.4,5.4727]
[1718201513640,4.658,3621.8,3621.4,5.4727]
[1718201513846,1.43344514,3621.7,3621.4,5.4727]
[1718201514044,2.87605678,3621.7,3621.4,5.4727]
[1718201514345,3.0,3621.6,3621.4,5.4727]
[1718201514547,2.87605678,3621.7,3621.4,5.4727]
[1718201514736,3.0,3621.6,3621.4,5.4727]
[1718201514931,4.43344514,3621.6,3621.4,5.4727]
[1718201516077,6.17284514,3621.5,3621.4,5.4727]
[1718201516365,13.30320814,3621.5,3621.4,5.4727]
[1718201516680,16.30320814,3621.5,3621.4,5.4727]
[1718201516887,15.43884478,3621.5,3621.4,5.4727]
[1718201517166,16.75751314,3621.5,3621.4,5.4727]
[1718201517880,13.17323314,3621.5,3621.4,5.4727]
[1718201518179,8.34984514,3621.5,3621.4,5.4727]
[1718201519071,6.09144514,3621.5,3621.4,5.4727]
[1718201519540,3.0,3621.5,3621.4,6.2957]
[1718201519736,1.658,3621.7,3621.4,6.2957]
[1718201519935,1.43344514,3621.6,3621.4,6.2957]
[1718201520136,4.43344514,3621.6,3621.4,6.2957]
[1718201520439,4.43344514,3621.6,3621.4,5.4727]
[1718201520859,1.43344514,3621.6,3621.4,5.4727]
[1718201521071,4.43344514,3621.6,3621.4,5.4727]
[1718201521258,3.0,3621.6,3621.4,5.4727]
[1718201521466,4.658,3621.9,3621.4,6.2957]
[1718201521769,1.79825242,3622.2,3621.4,6.2957]
[1718201521770,3.0,3621.8,3621.4,6.2957]
[1718201521932,3.0,3622.0,3621.4,6.2957]
[1718201522140,1.43344514,3622.0,3621.4,6.2957]
[1718201522677,7.174,3622.3,3621.8,0.823]
[1718201523741,7.174,3622.3,3621.6,0.823]
[1718201524172,3.0,3622.2,3621.6,0.823]
[1718201525479,0.43232057,3622.1,3621.5,2.4784]
[1718201525651,0.43232057,3622.1,3622.0,0.823]
[1718201526859,0.43232057,3622.1,3621.5,2.4784]
[1718201527060,0.43232057,3622.1,3621.7,0.823]
[1718201528260,0.43232057,3622.1,3621.5,0.823]
[1718201529084,1.86576571,3622.1,3621.5,0.823]
[1718201529285,1.43344514,3622.0,3621.4,5.4727]
[1718201529786,4.43344514,3622.0,3621.4,6.2957]
[1718201530944,6.09144514,3622.0,3621.4,6.2957]
[1718201531154,6.09144514,3622.0,3621.4,5.4727]
[1718201532866,1.658,3621.8,3621.4,5.4727]
[1718201533186,1.43344514,3621.7,3621.4,5.4727]
[1718201533393,4.43344514,3621.7,3621.4,5.4727]
[1718201535258,6.09144514,3621.7,3621.4,5.4727]
[1718201535588,0.823,3621.5,3621.4,5.4727]
[1718201535888,3.91444514,3621.5,3621.4,5.4727]
[1718201536090,15.42492214,3621.5,3621.4,5.4727]
[1718201536252,6.09144514,3621.5,3621.4,5.4727]
[1718201539170,3.0,3621.5,3621.4,5.4727]
[1718201539370,4.658,3621.8,3621.4,5.4727]
[1718201539583,1.43344514,3621.7,3621.4,5.4727]
[1718201539882,4.43344514,3621.7,3621.4,5.4727]
[1718201541515,6.09144514,3621.7,3621.4,5.4727]
[1718201541730,1.658,3621.5,3621.4,5.4727]
[1718201541893,6.09144514,3621.5,3621.4,5.4727]
[1718201542093,3.0,3621.5,3621.4,5.4727]
[1718201542344,1.658,3621.7,3621.4,5.4727]
[1718201542541,3.09144514,3621.7,3621.4,5.4727]
[1718201542713,3.0,3621.6,3621.4,5.4727]
[1718201543038,3.0,3621.8,3621.4,5.4727]
[1718201543918,3.0,3621.8,3621.5,0.823]
[1718201544136,3.0,3621.8,3621.4,5.4727]
[1718201545023,1.43344514,3621.7,3621.4,5.4727]
[1718201547348,3.0,3621.8,3621.4,5.4727]
[1718201548412,3.0,3621.8,3621.4,6.2957]
[1718201549947,3.0,3621.8,3621.4,5.4727]
[1718201550309,3.0,3621.8,3621.4,6.2957]
[1718201550618,3.0,3621.8,3621.6,0.823]
[1718201550829,3.0,3621.8,3621.4,5.4727]
[1718201550830,3.0,3621.8,3621.4,6.2957]
[1718201552211,3.0,3621.8,3621.4,8.6279]
[1718201553008,3.0,3621.8,3621.6,0.823]
[1718201553350,3.0,3621.8,3621.4,8.6279]
[1718201554650,3.0,3621.8,3621.6,0.823]
[1718201558416,3.0,3622.2,3621.6,0.823]
[1718201558616,2.95,3622.2,3621.6,0.823]
[1718201561071,2.95,3622.2,3621.4,7.8049]
[1718201561251,2.95,3622.2,3621.5,0.823]
[1718201561654,4.38344514,3622.2,3621.5,0.823]
[1718201561853,1.43344514,3622.1,3621.4,5.4727]
[1718201562022,3.09144514,3622.1,3621.4,5.4727]
[1718201562374,3.0,3622.0,3621.4,5.4727]
[1718201562588,4.43344514,3622.0,3621.4,5.4727]
[1718201563978,4.43344514,3622.0,3621.4,6.2957]
[1718201564659,3.0,3621.9,3621.5,0.823]
[1718201564984,1.43344514,3622.0,3621.4,5.4727]
[1718201565193,1.43344514,3622.0,3621.5,0.823]
[1718201566708,1.43344514,3622.0,3621.4,5.4727]
[1718201568200,5.38294514,3621.9,3621.4,5.4727]
[1718201568416,3.0,3621.8,3621.4,5.4727]
[1718201568593,4.43344514,3621.8,3621.4,5.4727]
[1718201574124,4.43344514,3621.8,3621.4,6.2957]
[1718201574426,4.43344514,3621.8,3621.4,9.05705]
[1718201575911,1.43344514,3621.8,3621.4,9.05705]
[1718201576109,4.43344514,3621.8,3621.4,9.05705]
[1718201576515,3.0,3621.8,3621.6,2.7612]
[1718201576736,7.174,3622.3,3622.0,2.76089]
[1718201576932,7.174,3622.3,3622.2,0.823]
[1718201577232,12.28,3622.7,3622.3,2.76065]
[1718201577233,19.454,3622.7,3622.3,2.76065]
[1718201578202,19.454,3622.7,3622.5,2.76047]
[1718201578438,19.454,3622.7,3622.6,0.823]
[1718201580211,22.454,3622.7,3622.6,0.823]
[1718201580643,19.454,3622.7,3622.6,0.823]
[1718201581604,7.174,3623.2,3622.7,2.76031]
[1718201581795,7.174,3623.2,3622.9,0.823]
[1718201582000,3.0,3623.1,3622.9,0.823]
[1718201582214,3.0,3623.1,3622.9,3.58319]
[1718201582540,7.174,3623.2,3622.9,3.941509]
[1718201582846,7.174,3623.2,3623.1,0.823]
[1718201585403,7.174,3623.2,3622.9,3.118509]
[1718201585611,7.174,3623.2,3623.1,0.823]
[1718201587406,7.174,3623.2,3622.7,2.4104]
[1718201587609,24.3886,3623.6,3623.0,0.823]
[1718201587847,2.472,3623.4,3623.0,0.823]
[1718201588627,2.472,3623.4,3622.4,2.4032]
[1718201588955,2.472,3623.4,3623.1,0.823]
[1718201589515,2.472,3623.4,3622.4,2.4032]
[1718201589738,3.0,3623.5,3623.2,0.823]
[1718201591736,3.0,3623.5,3622.8,2.2542]
[1718201591926,3.0,3623.5,3623.4,0.823]
[1718201592516,3.0,3623.5,3622.8,2.2542]
[1718201592764,3.0,3623.5,3623.1,0.823]
[1718201593659,3.0,3623.5,3623.3,0.823]
[1718201602473,3.0,3623.5,3623.2,0.823]
[1718201604648,3.0,3623.5,3622.5,7.9501]
[1718201604967,2.4187,3623.4,3623.0,0.823]
[1718201605334,3.85214514,3623.4,3622.5,7.9501]
[1718201605673,3.0,3623.3,3623.0,0.823]
[1718201606232,3.0,3623.3,3623.2,0.823]
[1718201607548,3.0,3623.5,3623.2,0.823]
[1718201608057,3.0,3623.5,3622.5,7.9501]
[1718201608262,3.0,3623.5,3623.2,0.823]
[1718201608771,3.0,3623.5,3623.3,0.823]
[1718201622393,3.0,3623.5,3622.6,2.76044]
[1718201622598,3.0,3623.5,3623.1,0.823]
[1718201622995,3.0,3623.5,3623.3,0.823]
[1718201625851,3.83214514,3623.4,3622.7,5.5707]
[1718201626144,3.0,3623.3,3622.7,5.5707]
[1718201626545,1.4454821,3623.2,3622.7,5.5707]
[1718201627040,4.65268602,3623.3,3622.7,5.5707]
[1718201627246,4.65268602,3623.3,3622.7,6.3937]
[1718201628133,4.65268602,3623.3,3622.9,0.823]
[1718201628316,3.20720392,3623.3,3622.9,0.823]
[1718201629125,4.65268602,3623.3,3622.7,6.3937]
[1718201629845,4.65268602,3623.3,3622.9,0.823]
[1718201630348,3.20720392,3623.3,3622.9,0.823]
[1718201630511,0.20720392,3623.3,3622.9,0.823]
[1718201630711,3.0,3623.2,3622.9,0.823]
[1718201630947,0.20720392,3623.3,3622.9,0.823]
[1718201632676,0.20720392,3623.3,3623.1,0.823]
[1718201633082,0.20720392,3623.3,3622.9,0.823]
[1718201633578,3.0,3623.4,3623.2,0.823]
[1718201633757,3.0,3623.5,3623.2,0.823]
[1718201634546,8.62147815,3623.6,3623.4,0.823]
[1718201634547,7.174,3623.6,3623.4,0.823]
[1718201634743,7.174,3623.6,3623.5,7.8316]
[1718201634980,7.174,3623.9,3623.5,7.8316]
[1718201635287,7.174,3623.9,3623.8,0.823]
[1718201636157,10.174,3623.9,3623.8,0.823]
[1718201639085,10.174,3623.9,3623.5,6.3925]
[1718201639296,3.0,3623.8,3623.5,6.3925]
[1718201640217,3.0,3623.8,3623.7,0.823]
[1718201640418,3.0,3624.1,3623.7,0.823]
[1718201640726,4.43344514,3624.1,3623.7,0.823]
[1718201646809,4.43344514,3624.1,3623.5,6.3925]
[1718201653146,4.43344514,3624.1,3623.7,0.823]
[1718201654675,3.0,3624.1,3623.7,0.823]
[1718201655550,7.174,3624.2,3623.6,2.2776]
[1718201655872,8.61920883,3624.6,3624.4,2.75904]
[1718201656079,19.8,3625.2,3624.4,2.75904]
[1718201656080,7.174,3625.2,3624.5,6.391]
[1718201656302,7.174,3625.2,3625.1,0.823]
[1718201656564,1.658,3625.7,3625.1,6.3901]
[1718201656790,1.658,3625.7,3625.4,0.823]
[1718201657272,1.658,3625.7,3625.2,0.823]
[1718201658460,1.658,3625.7,3625.4,0.823]
[1718201659240,7.174,3625.8,3625.4,0.823]
[1718201659434,7.174,3625.8,3625.6,0.823]
[1718201660777,0.21198584,3626.2,3625.7,5.5662]
[1718201661080,0.21198584,3626.2,3626.0,0.823]
[1718201662084,0.21198584,3626.2,3625.7,5.5662]
[1718201662287,19.404,3626.7,3626.1,0.823]
[1718201662595,7.174,3627.0,3626.6,0.823]
[1718201662800,1.658,3627.5,3626.9,0.823]
[1718201662801,8.832,3627.5,3626.9,0.823]
[1718201662957,8.832,3627.5,3627.2,0.823]
[1718201663158,7.174,3627.5,3627.2,0.823]
[1718201663660,7.174,3627.5,3627.4,0.823]
[1718201663972,1.658,3627.8,3627.2,0.823]
[1718201664390,19.404,3627.9,3627.6,0.823]
[1718201664592,26.670258,3628.0,3627.7,0.823]
[1718201664798,26.670258,3628.0,3627.9,0.823]
[1718201665304,26.670258,3628.0,3627.9,7.9054]
[1718201665500,26.670258,3628.0,3627.9,9.168489]
[1718201665999,26.670258,3628.0,3627.9,7.9054]
[1718201666205,26.670258,3628.0,3627.9,5.5628]
[1718201666895,29.670258,3628.0,3627.9,5.5628]
[1718201667263,31.328258,3628.0,3627.9,5.5628]
[1718201667998,37.20546,3628.0,3627.9,5.5628]
[1718201668199,39.32096,3628.0,3627.9,5.5628]
[1718201668375,39.87096,3628.0,3626.4,2.3655]
[1718201668580,1.658,3627.8,3626.4,2.3655]
[1718201669004,1.658,3627.6,3626.3,2.75756]
[1718201669373,1.658,3627.4,3626.3,2.75756]
[1718201669627,1.43344514,3627.3,3626.3,2.75756]
[1718201669814,4.43344514,3627.3,3626.3,2.75756]
[1718201670008,6.09144514,3627.3,3625.9,5.0925]
[1718201672046,6.09144514,3627.3,3625.9,2.7579]
[1718201672410,13.26544514,3627.3,3625.5,2.75823]
[1718201672614,1.658,3627.1,3625.5,2.75823]
[1718201672816,1.658,3626.9,3625.5,2.75823]
[1718201673149,1.43344514,3626.8,3625.5,2.75823]
[1718201673657,4.43344514,3626.8,3625.5,2.75823]
[1718201673858,4.43344514,3626.8,3625.7,2.75805]
[1718201674060,1.43344514,3626.8,3625.8,5.516]
[1718201674232,3.0,3626.7,3625.8,5.516]
[1718201674436,4.43344514,3626.8,3625.8,7.485]
[1718201675327,1.43344514,3626.8,3625.8,7.485]
[1718201675533,4.43344514,3626.8,3625.9,2.75792]
[1718201675859,3.0,3626.8,3625.9,2.75792]
[1718201676062,4.658,3627.2,3626.2,2.75767]
[1718201676250,1.43344514,3627.1,3626.2,2.75767]
[1718201677220,4.658,3627.2,3626.2,2.75767]
[1718201677425,7.174,3627.3,3626.8,1.969]
[1718201677756,19.404,3627.7,3626.8,1.969]
[1718201678058,19.404,3627.7,3627.2,1.969]
[1718201678422,19.404,3627.7,3627.4,2.75677]
[1718201678753,19.404,3627.7,3627.5,5.5134]
[1718201679133,3.0,3627.6,3627.5,5.5134]
[1718201680938,19.404,3627.7,3627.5,5.5134]
[1718201681463,29.670258,3628.0,3627.5,5.5134]
[1718201681772,3.0,3627.9,3627.5,5.5134]
[1718201684067,4.43344514,3627.9,3627.5,5.5134]
[1718201684277,3.09144514,3627.8,3627.5,5.5134]
[1718201684457,3.0,3627.7,3627.5,5.5134]
[1718201684667,4.43344514,3627.7,3627.5,5.5134]
[1718201686522,3.09144514,3627.6,3627.5,5.5134]
[1718201687006,6.09144514,3627.6,3627.5,5.5134]
[1718201688099,15.54069314,3627.6,3627.5,5.5134]
[1718201688304,6.09144514,3627.6,3627.5,5.5134]
[1718201688505,17.39258914,3627.6,3627.5,5.5134]
[1718201688811,9.48541459,3627.6,3627.5,5.5134]
[1718201689016,27.74560459,3627.6,3627.5,5.5134]
[1718201689364,28.23068459,3627.6,3627.5,5.5134]
[1718201689571,26.49978659,3627.6,3627.5,3.28755606]
[1718201689771,26.49978659,3627.6,3627.5,3.06387606]
[1718201689971,25.64334059,3627.6,3627.5,3.06387606]
[1718201690196,9.48541459,3627.6,3626.2,1.969]
[1718201690471,1.658,3627.4,3626.0,2.7578]
[1718201690698,1.658,3627.2,3626.0,2.7578]
[1718201690900,3.09144514,3627.1,3626.0,2.7578]
[1718201691110,3.0,3627.0,3626.0,2.7578]
[1718201691408,4.43344514,3627.0,3626.0,2.7578]
[1718201691566,1.43344514,3626.9,3626.0,2.7578]
[1718201691773,6.09144514,3627.0,3626.0,2.7578]
[1718201692011,3.09144514,3626.9,3626.0,2.7578]
[1718201692220,3.0,3626.8,3625.8,1.969]
[1718201692722,4.658,3627.3,3625.8,4.72699]
[1718201692887,1.658,3627.1,3625.8,4.72699]
[1718201693219,3.09144514,3627.0,3625.8,4.72699]
[1718201693522,4.658,3626.9,3625.8,4.72699]
[1718201693737,1.43344514,3626.8,3625.8,4.72699]
[1718201700257,3.0,3626.9,3626.0,2.75782]
[1718201700619,3.0,3626.9,3626.3,2.7576]
[1718201702111,7.174,3627.0,3626.6,2.2821]
[1718201702313,7.174,3627.0,3626.7,2.75731]
[1718201702532,7.174,3627.5,3626.9,2.75711]
[1718201702731,19.404,3627.9,3626.9,2.75711]
[1718201702949,20.83744514,3627.9,3626.9,2.75711]
[1718201703842,20.83744514,3627.9,3627.1,2.75699]
[1718201704033,20.83744514,3627.9,3627.1,3.23510272]
[1718201704523,20.83744514,3627.9,3627.1,2.75699]
[1718201704723,1.43344514,3627.8,3626.6,2.2821]
[1718201705555,1.43344514,3627.8,3626.5,2.75743]
[1718201705556,2.9111,3627.7,3626.5,2.75743]
[1718201705735,1.43344514,3627.6,3626.5,2.75743]
[1718201705958,4.43344514,3627.6,3626.6,0.05514394]
[1718201706126,3.0,3627.6,3626.9,2.75714]
[1718201706328,3.0,3627.8,3626.9,2.75714]
[1718201706528,1.43344514,3627.7,3626.6,2.75736]
[1718201708497,1.43344514,3627.7,3626.4,1.969]
[1718201708498,3.0,3627.8,3626.8,2.75719]
[1718201708791,4.43344514,3627.8,3626.8,2.75719]
[1718201713337,2.3825,3627.6,3626.1,5.13321]
[1718201713466,8.60744514,3627.5,3626.1,5.13321]
[1718201713671,3.0,3627.4,3626.1,2.75771]
[1718201713908,1.43344514,3627.3,3626.1,2.75771]
[1718201716187,3.0,3627.4,3626.4,1.969]
[1718201716389,3.0,3627.4,3626.5,0.05514392]
[1718201716573,7.174,3627.5,3626.6,0.05514392]
[1718201717017,7.174,3627.5,3626.5,2.4546]
[1718201717376,7.174,3627.5,3626.8,1.969]
[1718201717609,7.174,3627.5,3626.9,0.1969]
[1718201717812,0.22564605,3627.9,3626.8,1.969]
[1718201717813,7.39964605,3627.9,3626.8,1.969]
[1718201718022,1.43344514,3627.8,3626.8,4.72624]
[1718201718219,4.43344514,3627.8,3626.8,4.72624]
[1718201718791,3.0,3627.8,3626.9,0.05513827]
[1718201719726,3.0,3627.8,3626.8,4.72624]
[1718201719990,3.0,3627.8,3626.9,0.05513781]
[1718201720664,3.0,3627.8,3627.2,2.75689]
[1718201721221,3.0,3627.8,3627.0,2.3229]
[1718201721222,3.0,3627.8,3627.4,2.75679]
[1718201721830,7.39964605,3627.9,3627.4,2.75679]
[1718201722136,7.39964605,3627.9,3627.5,0.472579]
[1718201722445,26.670258,3628.0,3627.6,2.02412923]
[1718201722650,26.670258,3628.0,3627.7,2.3165]
[1718201722822,26.670258,3628.0,3627.7,2.37162495]
[1718201723025,26.670258,3628.0,3627.8,2.75643]
[1718201723357,26.670258,3628.0,3627.9,0.7097055]
[1718201723528,26.670258,3628.0,3627.9,0.76483045]
[1718201723727,26.670258,3628.0,3627.9,3.1884055]
[1718201723931,26.670258,3628.0,3627.9,4.62185064]
[1718201723932,4.670458,3628.0,3627.9,4.62185064]
[1718201724125,2.3524,3629.9,3628.0,2.3402]
[1718201724449,3.78584514,3629.9,3628.7,2.75575]
[1718201724647,3.78584514,3629.9,3628.9,1.969]
[1718201725456,1.43344514,3629.9,3628.9,1.969]
[1718201726090,2.3305,3630.3,3628.9,1.969]
[1718201726260,3.76394514,3630.3,3629.1,2.75549]
[1718201726765,1.43344514,3630.2,3629.1,2.75549]
[1718201727124,4.43344514,3630.2,3628.8,2.2579]
[1718201727623,4.43344514,3630.2,3628.7,2.75573]
[1718201727959,0.55,3630.1,3628.7,2.75573]
[1718201728119,1.43344514,3630.0,3628.7,2.75573]
[1718201729624,3.08844514,3630.0,3628.7,2.75573]
[1718201729850,3.55,3629.9,3628.7,2.75573]
[1718201730055,1.43344514,3629.8,3628.7,2.75573]
[1718201731003,4.541,3629.7,3628.3,2.75603]
[1718201731326,1.43344514,3629.6,3628.3,2.75603]
[1718201731454,0.55,3629.5,3628.0,2.75633]
[1718201731658,7.174,3629.2,3628.0,2.75633]
[1718201731913,3.0,3629.1,3628.0,2.75633]
[1718201732070,1.43344514,3629.0,3627.8,4.2798]
[1718201732391,1.43344514,3629.0,3627.8,2.3108]
[1718201732594,1.43344514,3629.0,3627.7,2.75656]
[1718201733291,1.43344514,3629.0,3627.6,1.969]
[1718201734161,1.43344514,3628.9,3627.9,2.75635]
[1718201734365,1.43344514,3628.9,3628.0,0.275635]
[1718201734799,3.0,3629.1,3628.1,2.75624]
[1718201735693,3.0,3629.1,3628.2,0.05511785]
[1718201736502,3.0,3629.1,3628.3,2.81121556]
[1718201736936,3.0,3629.1,3628.0,0.275635]
[1718201737276,3.0,3629.1,3628.1,0.5471805]
[1718201738167,3.0,3629.1,3628.3,2.75609]
[1718201738433,3.0,3629.1,3628.4,0.05511336]
[1718201739692,3.0,3629.1,3628.0,2.244635]
[1718201739693,2.3191,3629.0,3628.0,3.031955]
[1718201739901,3.0,3629.1,3628.0,3.031955]
[1718201740118,3.0,3629.1,3628.1,0.5000955]
[1718201740703,3.0,3629.1,3628.2,2.3565]
[1718201742252,3.0,3629.1,3628.3,2.02411573]
[1718201743431,3.0,3629.1,3628.3,1.969]
[1718201745934,3.0,3629.1,3628.4,0.05511488]
[1718201746110,3.0,3629.1,3628.5,0.71367549]
[1718201749622,3.0,3629.1,3628.6,0.0551146]
[1718201751145,7.174,3629.2,3628.6,2.8109646]
[1718201753106,7.174,3629.2,3628.8,2.75569]
[1718201753421,3.0,3629.5,3628.8,2.75569]
[1718201753621,3.0,3629.5,3628.8,3.29952655]
[1718201756738,3.0,3629.5,3628.9,0.05510807]
[1718201757701,3.0,3629.6,3628.9,0.05510807]
[1718201759123,3.0,3629.6,3628.5,3.46957549]
[1718201759436,3.0,3629.6,3628.5,2.7559]
[1718201759847,3.0,3629.6,3628.7,2.75578]
[1718201760306,3.0,3629.6,3628.8,2.4196]
[1718201761203,3.0,3629.6,3628.9,2.81072934]
[1718201761443,3.0,3629.6,3629.0,0.71993293]
[1718201762142,7.174,3630.2,3629.8,2.75494]
[1718201762374,7.174,3630.7,3629.8,2.75494]
[1718201762673,7.174,3630.7,3629.9,0.05509148]
[1718201763016,7.174,3630.7,3629.8,2.75494]
[1718201763345,7.174,3630.7,3629.9,0.05509146]
[1718201763545,7.174,3630.7,3630.0,0.52253315]
[1718201763748,7.174,3631.0,3630.1,0.05508944]